[Event "5th CNE NED-ch Rapid 2019"]
[Site "Amstelveen"]
[Date "2019.12.01"]
[Round "4.1"]
[White "Van Wely, Loek"]
[Black "Smeets, Jan"]
[Result "1-0"]
[ECO "D30"]
[WhiteElo "2610"]
[BlackElo "2596"]
[Annotator "ChessBase"]
[PlyCount "59"]
[EventDate "2019.11.30"]
[EventType "tourn"]
[EventCountry "NED"]
[SourceTitle "playchess.com"]
[Source "ChessBase"]
[SourceQuality "1"]
[TimeControl "900+10"]

1. c4 {[%emt 0:00:00]} c6 {[%emt 0:00:00]} 2. Nf3 {[%emt 0:00:00]} d5 {[%emt 0:00:00]} 3. d4 {[%emt 0:00:00]} Nf6 {[%emt 0:00:00]} 4. Qb3 {[%emt 0:00:04]} e6 {[%emt 0:00:20]} 5. g3 {[%emt 0:00:12]} dxc4 {[%emt 0:00:27]} 6. Qxc4 {[%emt 0:00:02]} b5 {[%emt 0:00:01]} 7. Qc2 {[%emt 0:00:08]} Bb7 {[%emt 0:00:03]} 8. Bg2 {[%emt 0:00:05]} Nbd7 {[%emt 0:00:09]} 9. Nc3 {[%emt 0:00:59]} a6 {[%emt 0:02:05]} 10. Ne5 {[%emt 0:01:59]} Qb6 {[%emt 0:01:54]} 11. Nxd7 {[%emt 0:00:08]} Nxd7 {[%emt 0:00:02]} 12. O-O {[%emt 0:00:05]} Qxd4 {[%emt 0:02:14]} 13. Rd1 {[%emt 0:00:03]} Qb6 {[%emt 0:00:08]} 14. Ne4 {[%emt 0:00:47]} Qc7 {[%emt 0:03:50]} 15. a4 {[%emt 0:03:37]} Be7 {[%emt 0:01:17]} 16. Bf4 {[%emt 0:00:05]} e5 {[%emt 0:00:27]} 17. Bg5 {[%emt 0:00:02]} Bxg5 {[%emt 0:02:54]} 18. Nd6+ {[%emt 0:00:11]} Ke7 {[%emt 0:00:31]} 19. axb5 {[%emt 0:04:34]} axb5 {[%emt 0:00:09]} 20. Nxb5 {[%emt 0:00:02]} Qd8 {[%emt 0:00:53]} 21. Rxa8 {[%emt 0:01:34]} Qxa8 {[%emt 0:00:34]} 22. Qf5 {[%emt 0:00:09]} Rd8 {[%emt 0:00:09]} 23. Qxg5+ {[%emt 0:00:16]} Kf8 {[%emt 0:00:01]} 24. Nd6 {[%emt 0:03:58]} Nf6 {[%emt 0:00:11]} 25. Qxe5 {[%emt 0:00:00]} Ne8 {[%emt 0:00:31]} 26. Qc5 {[%emt 0:00:00]} Kg8 {[%emt 0:00:01]} 27. Rd3 {[%emt 0:00:00]} Qa1+ {[%emt 0:00:08]} 28. Bf1 {[%emt 0:00:00]} Qxb2 {[%emt 0:00:18]} 29. Nxb7 {[%emt 0:00:00]} Rxd3 {[%emt 0:00:02]} 30. Qxc6 {[%emt 0:00:00]} 1-0

[Event "5th CNE NED-ch Rapid 2019"]
[Site "Amstelveen"]
[Date "2019.12.01"]
[Round "4.2"]
[White "Timman, Jan H"]
[Black "Reinderman, Dimitri"]
[Result "0-1"]
[ECO "B31"]
[WhiteElo "2528"]
[BlackElo "2575"]
[Annotator "ChessBase"]
[PlyCount "124"]
[EventDate "2019.11.30"]
[EventType "tourn"]
[EventCountry "NED"]
[SourceTitle "playchess.com"]
[Source "ChessBase"]
[SourceQuality "1"]
[TimeControl "900+10"]

1. e4 {[%emt 0:00:00]} c5 {[%emt 0:00:00]} 2. Nf3 {[%emt 0:00:00]} Nc6 {[%emt 0:00:00]} 3. Bb5 {[%emt 0:00:00]} Nf6 {[%emt 0:00:00]} 4. d3 {[%emt 0:00:26]} g6 {[%emt 0:00:37]} 5. Nc3 {[%emt 0:01:25]} Bg7 {[%emt 0:00:07]} 6. O-O {[%emt 0:00:14]} O-O {[%emt 0:00:09]} 7. e5 {[%emt 0:00:07]} Ne8 {[%emt 0:00:37]} 8. Bxc6 {[%emt 0:00:36]} bxc6 {[%emt 0:00:12]} 9. Re1 {[%emt 0:00:28]} f6 {[%emt 0:00:58]} 10. Bf4 {[%emt 0:00:25]} fxe5 {[%emt 0:00:06]} 11. Bxe5 {[%emt 0:00:03]} d6 {[%emt 0:00:26]} 12. Bxg7 {[%emt 0:00:03]} Nxg7 {[%emt 0:00:02]} 13. d4 {[%emt 0:01:30]} Bg4 {[%emt 0:01:15]} 14. dxc5 {[%emt 0:00:02]} Bxf3 {[%emt 0:00:02]} 15. gxf3 {[%emt 0:00:01]} d5 {[%emt 0:00:01]} 16. Qe2 {[%emt 0:00:23]} Rf7 {[%emt 0:00:10]} 17. Qe5 {[%emt 0:00:31]} Qd7 {[%emt 0:01:37]} 18. Rad1 {[%emt 0:00:11]} Raf8 {[%emt 0:00:57]} 19. Rd3 {[%emt 0:00:23]} Nh5 {[%emt 0:02:32]} 20. Ne2 {[%emt 0:02:30]} Rf5 {[%emt 0:00:04]} 21. Qc3 {[%emt 0:00:05]} Rg5+ {[%emt 0:00:28]} 22. Ng3 {[%emt 0:00:22]} Nf4 {[%emt 0:00:18]} 23. Re4 {[%emt 0:01:18]} e5 {[%emt 0:02:04]} 24. h4 {[%emt 0:00:51]} Qh3 {[%emt 0:00:50]} 25. Rxf4 {[%emt 0:00:02]} Rxg3+ {[%emt 0:00:02]} 26. fxg3 {[%emt 0:00:01]} Qxg3+ {[%emt 0:00:02]} 27. Kf1 {[%emt 0:00:02]} Rxf4 {[%emt 0:00:18]} 28. Ke2 {[%emt 0:00:44]} Rxh4 {[%emt 0:00:44]} 29. Re3 {[%emt 0:00:22]} d4 {[%emt 0:01:48]} 30. Qb3+ {[%emt 0:00:25]} Kg7 {[%emt 0:00:01]} 31. Qb7+ {[%emt 0:00:09]} Kh6 {[%emt 0:00:05]} 32. Rb3 {[%emt 0:00:07]} Rh2+ {[%emt 0:00:23]} 33. Kd3 {[%emt 0:00:01]} Qxf3+ {[%emt 0:00:25]} 34. Kc4 {[%emt 0:00:01]} Qd5+ {[%emt 0:00:11]} 35. Kb4 {[%emt 0:00:01]} e4 {[%emt 0:00:14]} 36. Qc7 {[%emt 0:00:16]} Rh4 {[%emt 0:00:21]} 37. Qe7 {[%emt 0:00:08]} Qg5 {[%emt 0:00:29]} 38. Qf8+ {[%emt 0:00:46]} Kh5 {[%emt 0:00:00]} 39. Ka5 {[%emt 0:01:56]} h6 {[%emt 0:00:19]} 40. Rb7 {[%emt 0:00:23]} Qd2+ {[%emt 0:00:41]} 41. b4 {[%emt 0:00:22]} Qxc2 {[%emt 0:00:05]} 42. a4 {[%emt 0:00:01]} e3 {[%emt 0:00:56]} 43. Rh7 {[%emt 0:00:21]} Kg4 {[%emt 0:00:13]} 44. Qc8+ {[%emt 0:00:14]} Kg3 {[%emt 0:00:12]} 45. Qxc6 {[%emt 0:00:19]} Qe4 {[%emt 0:00:10]} 46. Qd6+ {[%emt 0:00:20]} Kg2 {[%emt 0:00:01]} 47. Re7 {[%emt 0:00:06]} e2 {[%emt 0:00:39]} 48. Rxe4 {[%emt 0:00:13]} Rxe4 {[%emt 0:00:01]} 49. Qxg6+ {[%emt 0:00:02]} Kf3 {[%emt 0:00:00]} 50. Qh5+ {[%emt 0:00:19]} Ke3 {[%emt 0:00:05]} 51. Qh1 {[%emt 0:00:12]} d3 {[%emt 0:00:14]} 52. c6 {[%emt 0:00:08]} d2 {[%emt 0:00:13]} 53. Qh3+ {[%emt 0:00:20]} Kd4 {[%emt 0:00:08]} 54. Qd7+ {[%emt 0:00:01]} Ke3 {[%emt 0:00:28]} 55. Qh3+ {[%emt 0:00:02]} Kd4 {[%emt 0:00:00]} 56. Qd7+ {[%emt 0:00:02]} Kc3 {[%emt 0:00:02]} 57. c7 {[%emt 0:00:03]} Re5+ {[%emt 0:00:42]} 58. b5 {[%emt 0:00:05]} d1=Q {[%emt 0:00:05]} 59. c8=Q+ {[%emt 0:00:02]} Kb2 {[%emt 0:00:01]} 60. Qdc6 {[%emt 0:00:33]} e1=Q+ {[%emt 0:01:10]} 61. Ka6 {[%emt 0:00:00]} Qxa4+ {[%emt 0:00:00]} 62. Kb7 {[%emt 0:00:01]} Qxb5+ {[%emt 0:00:00]} 0-1

[Event "5th CNE NED-ch Rapid 2019"]
[Site "Amstelveen"]
[Date "2019.12.01"]
[Round "4.3"]
[White "Van Foreest, Jorden"]
[Black "Pruijssers, Roeland"]
[Result "1/2-1/2"]
[ECO "B01"]
[WhiteElo "2632"]
[BlackElo "2557"]
[Annotator "ChessBase"]
[PlyCount "155"]
[EventDate "2019.11.30"]
[EventType "tourn"]
[EventCountry "NED"]
[SourceTitle "playchess.com"]
[Source "ChessBase"]
[SourceQuality "1"]
[TimeControl "900+10"]

1. e4 {[%emt 0:00:00]} d5 {[%emt 0:00:10]} 2. exd5 {[%emt 0:00:00]} Qxd5 {[%emt 0:00:02]} 3. Nc3 {[%emt 0:00:03]} Qa5 {[%emt 0:00:03]} 4. Bc4 {[%emt 0:00:20]} Nf6 {[%emt 0:00:03]} 5. Nf3 {[%emt 0:00:05]} Bf5 {[%emt 0:00:19]} 6. d4 {[%emt 0:00:09]} e6 {[%emt 0:00:04]} 7. Bd2 {[%emt 0:00:05]} Bb4 {[%emt 0:00:02]} 8. a3 {[%emt 0:00:11]} Bxc3 {[%emt 0:00:04]} 9. Bxc3 {[%emt 0:00:02]} Qb6 {[%emt 0:00:01]} 10. O-O {[%emt 0:00:42]} Nc6 {[%emt 0:00:15]} 11. a4 {[%emt 0:00:28]} a5 {[%emt 0:00:07]} 12. b3 {[%emt 0:00:42]} O-O-O {[%emt 0:03:37]} 13. Bb2 {[%emt 0:00:27]} Bg4 {[%emt 0:00:16]} 14. c3 {[%emt 0:02:12]} Ne5 {[%emt 0:01:15]} 15. Qe2 {[%emt 0:00:01]} Nxc4 {[%emt 0:00:54]} 16. bxc4 {[%emt 0:00:02]} Bxf3 {[%emt 0:00:35]} 17. gxf3 {[%emt 0:00:02]} Qa6 {[%emt 0:00:04]} 18. Rab1 {[%emt 0:00:09]} Nd5 {[%emt 0:00:16]} 19. Rfe1 {[%emt 0:01:14]} Nb6 {[%emt 0:00:04]} 20. c5 {[%emt 0:00:01]} Qxe2 {[%emt 0:00:05]} 21. Rxe2 {[%emt 0:00:01]} Nc4 {[%emt 0:00:28]} 22. Bc1 {[%emt 0:00:36]} Rd5 {[%emt 0:00:17]} 23. Bf4 {[%emt 0:00:27]} Rf5 {[%emt 0:00:12]} 24. Bg3 {[%emt 0:00:18]} Rxf3 {[%emt 0:01:40]} 25. d5 {[%emt 0:00:02]} Re8 {[%emt 0:00:03]} 26. Rc1 {[%emt 0:07:08]} Rf5 {[%emt 0:01:17]} 27. Rd1 {[%emt 0:00:03]} c6 {[%emt 0:03:18]} 28. dxc6 {[%emt 0:01:40]} bxc6 {[%emt 0:00:02]} 29. Rb1 {[%emt 0:01:57]} e5 {[%emt 0:01:00]} 30. Rbe1 {[%emt 0:00:19]} Rd8 {[%emt 0:01:23]} 31. Bxe5 {[%emt 0:00:20]} Nd2 {[%emt 0:00:01]} 32. Bd6 {[%emt 0:00:01]} Nf3+ {[%emt 0:00:06]} 33. Kg2 {[%emt 0:00:08]} Nxe1+ {[%emt 0:00:22]} 34. Rxe1 {[%emt 0:00:00]} Rxd6 {[%emt 0:00:11]} 35. cxd6 {[%emt 0:00:02]} Kd7 {[%emt 0:00:01]} 36. Re7+ {[%emt 0:00:42]} Kxd6 {[%emt 0:00:01]} 37. Ra7 {[%emt 0:00:01]} g5 {[%emt 0:00:11]} 38. Kf1 {[%emt 0:00:08]} g4 {[%emt 0:00:58]} 39. Ke2 {[%emt 0:00:09]} h5 {[%emt 0:00:11]} 40. Ke3 {[%emt 0:00:05]} Rf3+ {[%emt 0:01:01]} 41. Ke2 {[%emt 0:00:01]} Rxc3 {[%emt 0:00:15]} 42. Rxa5 {[%emt 0:00:02]} Rh3 {[%emt 0:00:02]} 43. Rf5 {[%emt 0:00:40]} Rxh2 {[%emt 0:00:13]} 44. Kf1 {[%emt 0:00:21]} Rh1+ {[%emt 0:00:36]} 45. Ke2 {[%emt 0:00:01]} Ra1 {[%emt 0:00:12]} 46. Rxf7 {[%emt 0:00:16]} Rxa4 {[%emt 0:00:03]} 47. Rf6+ {[%emt 0:00:01]} Kc7 {[%emt 0:00:08]} 48. Rh6 {[%emt 0:00:11]} Ra5 {[%emt 0:00:04]} 49. Ke3 {[%emt 0:00:01]} Rf5 {[%emt 0:00:18]} 50. Ke4 {[%emt 0:00:04]} Rxf2 {[%emt 0:00:04]} 51. Rxh5 {[%emt 0:00:01]} g3 {[%emt 0:00:20]} 52. Rg5 {[%emt 0:00:02]} g2 {[%emt 0:00:02]} 53. Kd4 {[%emt 0:00:01]} Kb6 {[%emt 0:00:03]} 54. Kc4 {[%emt 0:00:03]} Re2 {[%emt 0:00:26]} 55. Kd3 {[%emt 0:00:04]} Ra2 {[%emt 0:00:02]} 56. Kc4 {[%emt 0:00:02]} Rb2 {[%emt 0:00:21]} 57. Rg7 {[%emt 0:00:06]} Rd2 {[%emt 0:00:06]} 58. Kc3 {[%emt 0:00:03]} Rf2 {[%emt 0:00:03]} 59. Kc4 {[%emt 0:00:02]} Rf4+ {[%emt 0:00:12]} 60. Kc3 {[%emt 0:00:03]} Rf3+ {[%emt 0:00:02]} 61. Kc4 {[%emt 0:00:34]} Rf2 {[%emt 0:00:02]} 62. Kb4 {[%emt 0:00:15]} Re2 {[%emt 0:00:30]} 63. Kc4 {[%emt 0:00:02]} Ka6 {[%emt 0:00:12]} 64. Kb4 {[%emt 0:00:08]} Rf2 {[%emt 0:00:07]} 65. Kc4 {[%emt 0:00:10]} Ka5 {[%emt 0:00:11]} 66. Ra7+ {[%emt 0:00:03]} Kb6 {[%emt 0:00:02]} 67. Rg7 {[%emt 0:00:01]} Ra2 {[%emt 0:00:20]} 68. Kb3 {[%emt 0:00:02]} Re2 {[%emt 0:00:02]} 69. Kc4 {[%emt 0:00:01]} Ka6 {[%emt 0:00:21]} 70. Kb4 {[%emt 0:00:11]} Rf2 {[%emt 0:00:07]} 71. Kc4 {[%emt 0:00:05]} Kb6 {[%emt 0:00:10]} 72. Kb4 {[%emt 0:00:02]} c5+ {[%emt 0:00:03]} 73. Kc4 {[%emt 0:00:01]} Kc6 {[%emt 0:00:00]} 74. Rg6+ {[%emt 0:00:01]} Kd7 {[%emt 0:00:01]} 75. Kxc5 {[%emt 0:00:01]} Ke7 {[%emt 0:00:02]} 76. Kd4 {[%emt 0:00:05]} Kf7 {[%emt 0:00:02]} 77. Ke3 {[%emt 0:00:07]} Ra2 {[%emt 0:00:04]} 78. Rg4 {[%emt 0:00:07]} 1/2-1/2

[Event "5th CNE NED-ch Rapid 2019"]
[Site "Amstelveen"]
[Date "2019.12.01"]
[Round "4.4"]
[White "Van den Doel, Erik"]
[Black "Ernst, Sipke"]
[Result "1/2-1/2"]
[ECO "C81"]
[WhiteElo "2598"]
[BlackElo "2553"]
[Annotator "ChessBase"]
[PlyCount "72"]
[EventDate "2019.11.30"]
[EventType "tourn"]
[EventCountry "NED"]
[SourceTitle "playchess.com"]
[Source "ChessBase"]
[SourceQuality "1"]
[TimeControl "900+10"]

1. e4 {[%emt 0:00:00]} e5 {[%emt 0:00:00]} 2. Nf3 {[%emt 0:00:00]} Nc6 {[%emt 0:00:02]} 3. Bb5 {[%emt 0:00:00]} a6 {[%emt 0:00:03]} 4. Ba4 {[%emt 0:00:00]} Nf6 {[%emt 0:00:01]} 5. O-O {[%emt 0:00:00]} Nxe4 {[%emt 0:00:02]} 6. d4 {[%emt 0:00:02]} b5 {[%emt 0:00:14]} 7. Bb3 {[%emt 0:00:01]} d5 {[%emt 0:00:01]} 8. dxe5 {[%emt 0:00:03]} Be6 {[%emt 0:00:01]} 9. Qe2 {[%emt 0:00:01]} Be7 {[%emt 0:00:02]} 10. Rd1 {[%emt 0:00:03]} O-O {[%emt 0:00:03]} 11. c4 {[%emt 0:00:02]} bxc4 {[%emt 0:00:01]} 12. Bxc4 {[%emt 0:00:02]} Bc5 {[%emt 0:00:02]} 13. Be3 {[%emt 0:00:03]} Bxe3 {[%emt 0:00:01]} 14. Qxe3 {[%emt 0:17:03]} Qb8 {[%emt 0:00:02]} 15. Bb3 {[%emt 0:00:00]} Na5 {[%emt 0:00:07]} 16. Nbd2 {[%emt 0:00:00]} Qa7 {[%emt 0:00:02]} 17. Nxe4 {[%emt 0:00:00]} Qxe3 {[%emt 0:00:57]} 18. fxe3 {[%emt 0:00:00]} Nxb3 {[%emt 0:00:51]} 19. axb3 {[%emt 0:00:00]} dxe4 {[%emt 0:00:02]} 20. Nd4 {[%emt 0:00:00]} c5 {[%emt 0:00:36]} 21. Nc6 {[%emt 0:00:00]} Bxb3 {[%emt 0:03:09]} 22. Rd6 {[%emt 0:00:00]} Rfe8 {[%emt 0:02:41]} 23. Ra5 {[%emt 0:00:00]} Kf8 {[%emt 0:00:05]} 24. Rxc5 {[%emt 0:00:00]} Rac8 {[%emt 0:00:02]} 25. Ra5 {[%emt 0:00:00]} Bc4 {[%emt 0:00:10]} 26. Nd4 {[%emt 0:00:00]} Bd3 {[%emt 0:00:01]} 27. Kf2 {[%emt 0:00:00]} Rc1 {[%emt 0:00:12]} 28. e6 {[%emt 0:00:00]} fxe6 {[%emt 0:01:00]} 29. Rxe6 {[%emt 0:00:00]} Rb8 {[%emt 0:00:55]} 30. b3 {[%emt 0:00:00]} Kg8 {[%emt 0:00:16]} 31. Rf5 {[%emt 0:00:00]} Rf1+ {[%emt 0:02:16]} 32. Kg3 {[%emt 0:00:00]} Rxf5 {[%emt 0:00:02]} 33. Nxf5 {[%emt 0:00:00]} Rxb3 {[%emt 0:00:04]} 34. Re8+ {[%emt 0:00:00]} Kf7 {[%emt 0:00:01]} 35. Nd6+ {[%emt 0:00:00]} Kf6 {[%emt 0:00:03]} 36. Nxe4+ {[%emt 0:00:00]} Bxe4 {[%emt 0:00:04]} 1/2-1/2

[Event "5th CNE NED-ch Rapid 2019"]
[Site "Amstelveen"]
[Date "2019.12.01"]
[Round "5.1"]
[White "Reinderman, Dimitri"]
[Black "Van Foreest, Jorden"]
[Result "1/2-1/2"]
[ECO "A23"]
[WhiteElo "2575"]
[BlackElo "2632"]
[Annotator "RC"]
[PlyCount "155"]
[EventDate "2019.11.30"]
[EventType "tourn"]
[EventCountry "NED"]
[SourceTitle "playchess.com"]
[Source "ChessBase"]
[SourceQuality "1"]
[TimeControl "900+10"]

1. c4 {[%emt 0:00:00]} e5 {[%emt 0:00:00]} 2. g3 {[%emt 0:00:00]} Nf6 {[%emt 0:00:00]} 3. Bg2 {[%emt 0:00:00]} Bc5 {[%emt 0:00:00]} 4. Nc3 {[%emt 0:00:04]} O-O {[%emt 0:00:01]} 5. e3 {[%emt 0:00:02]} c6 {[%emt 0:01:06]} 6. Nge2 {[%emt 0:00:02]} d5 {[%emt 0:00:03]} 7. cxd5 {[%emt 0:00:19]} cxd5 {[%emt 0:00:02]} 8. d4 {[%emt 0:00:04]} exd4 {[%emt 0:00:02]} 9. exd4 {[%emt 0:00:07]} Bb6 {[%emt 0:00:06]} 10. Bg5 {[%emt 0:00:47]} Nc6 {[%emt 0:00:31]} 11. O-O {[%emt 0:00:38]} Be6 {[%emt 0:00:07]} 12. Nf4 {[%emt 0:02:09]} h6 {[%emt 0:00:57]} 13. Bxf6 {[%emt 0:00:02]} Qxf6 {[%emt 0:00:02]} 14. Ncxd5 {[%emt 0:00:06]} Bxd5 {[%emt 0:00:05]} 15. Nxd5 {[%emt 0:00:03]} Qxd4 {[%emt 0:00:06]} 16. Qb3 {[%emt 0:00:37]} Rfe8 {[%emt 0:01:38]} 17. Rad1 {[%emt 0:00:35]} Qc5 {[%emt 0:00:02]} 18. Nxb6 {[%emt 0:01:50]} axb6 {[%emt 0:01:05]} 19. Rd5 {[%emt 0:00:38]} Qe7 {[%emt 0:01:00]} 20. Rfd1 {[%emt 0:01:12]} Qf6 {[%emt 0:02:50]} 21. Rd6 {[%emt 0:00:55]} Re6 {[%emt 0:03:43]} 22. Rxe6 {[%emt 0:00:07]} Qxe6 {[%emt 0:00:02]} 23. Qxe6 {[%emt 0:00:23]} fxe6 {[%emt 0:00:01]} 24. a3 {[%emt 0:00:19]} b5 {[%emt 0:00:02]} 25. Rd7 {[%emt 0:02:08]} Rb8 {[%emt 0:00:01]} 26. Bf1 {[%emt 0:01:29]} b4 {[%emt 0:00:02]} 27. axb4 {[%emt 0:00:01]} Nxb4 {[%emt 0:00:01]} 28. Bc4 {[%emt 0:00:02]} Nd5 {[%emt 0:00:01]} 29. Bxd5 {[%emt 0:00:02]} exd5 {[%emt 0:00:01]} 30. Rxd5 {[%emt 0:00:01]} Re8 {[%emt 0:00:37]} 31. Rd7 {[%emt 0:00:10]} b5 {[%emt 0:00:05]} 32. Rd5 {[%emt 0:00:01]} b4 {[%emt 0:00:06]} 33. Rd4 {[%emt 0:00:01]} Rb8 {[%emt 0:00:06]} 34. Kf1 {[%emt 0:00:05]} Kf7 {[%emt 0:00:00]} 35. Ke2 {[%emt 0:00:02]} Ke6 {[%emt 0:00:06]} 36. Kd3 {[%emt 0:00:11]} g5 {[%emt 0:00:01]} 37. f4 {[%emt 0:00:32]} Kf5 {[%emt 0:00:20]} 38. h3 {[%emt 0:00:09]} gxf4 {[%emt 0:00:15]} 39. Rxf4+ {[%emt 0:00:02]} Ke5 {[%emt 0:00:01]} 40. Rh4 {[%emt 0:00:33]} Rd8+ {[%emt 0:00:37]} 41. Ke3 {[%emt 0:01:22]} Rg8 {[%emt 0:00:10]} 42. Kf3 {[%emt 0:00:58]} Rf8+ {[%emt 0:00:12]} 43. Rf4 {[%emt 0:00:35]} Rb8 {[%emt 0:00:08]} 44. b3 {[%emt 0:00:07]} h5 {[%emt 0:00:40]} 45. Rh4 {[%emt 0:00:05]} Rc8 {[%emt 0:00:00]} 46. Rxb4 {[%emt 0:00:25]} Rc3+ {[%emt 0:00:01]} 47. Kf2 {[%emt 0:00:01]} Rc2+ {[%emt 0:00:03]} 48. Ke1 {[%emt 0:00:03]} Rc3 {[%emt 0:00:05]} 49. Kf2 {[%emt 0:01:28]} Rc2+ {[%emt 0:00:02]} 50. Kf1 {[%emt 0:00:01]} Rc3 {[%emt 0:00:09]} 51. Rb5+ {[%emt 0:00:20]} Ke4 {[%emt 0:00:02]} 52. Rxh5 {[%emt 0:00:01]} Rxg3 {[%emt 0:00:36]} 53. b4 {[%emt 0:00:01]} Rb3 {[%emt 0:00:02]} 54. Kg2 {[%emt 0:00:32]} Rb2+ {[%emt 0:00:26]} 55. Kg3 {[%emt 0:00:01]} Rb3+ {[%emt 0:00:00]} 56. Kg4 {[%emt 0:00:01]} Rxb4 {[%emt 0:00:01]} 57. Ra5 {[%emt 0:00:16]} Rb1 {[%emt 0:00:08]} 58. h4 {[%emt 0:00:02]} Rg1+ {[%emt 0:03:46]} 59. Kh5 {[%emt 0:00:00]} Kf4 {[%emt 0:00:46]} 60. Kh6 {[%emt 0:00:28]} Rb1 {[%emt 0:00:02]} 61. Rg5 {[%emt 0:00:41]} Rb8 {[%emt 0:00:10]} 62. Kh7 {[%emt 0:00:54]} Rb7+ {[%emt 0:00:01]} 63. Kg6 {[%emt 0:00:04]} Rb6+ {[%emt 0:00:04]} 64. Kh5 {[%emt 0:00:03]} Rb8 {[%emt 0:00:04]} 65. Rg6 {[%emt 0:00:10]} Kf5 {[%emt 0:00:01]} 66. Rg5+ {[%emt 0:00:08]} Kf6 {[%emt 0:00:02]} 67. Ra5 {[%emt 0:00:05]} Kg7 {[%emt 0:00:01]} 68. Kg5 {[%emt 0:00:05]} Kh8 {[%emt 0:00:03]} 69. h5 {[%emt 0:00:01]} Rb6 {[%emt 0:00:01]} 70. Rf5 {[%emt 0:00:03]} Rc6 {[%emt 0:00:00]} 71. Rf6 {[%emt 0:00:02]} Rxf6 {[%emt 0:00:01]} 72. Kxf6 {[%emt 0:00:00]} Kh7 {[%emt 0:00:01]} 73. Kg5 {[%emt 0:00:01]} Kg7 {[%emt 0:00:01]} 74. h6+ {[%emt 0:00:01]} Kh7 {[%emt 0:00:01]} 75. Kh5 {[%emt 0:00:00]} Kh8 {[%emt 0:00:01]} 76. Kg6 {[%emt 0:00:01]} Kg8 {[%emt 0:00:00]} 77. h7+ {[%emt 0:00:01]} Kh8 {[%emt 0:00:01]} 78. Kh6 {[%emt 0:00:18]} 1/2-1/2

[Event "5th CNE NED-ch Rapid 2019"]
[Site "Amstelveen"]
[Date "2019.12.01"]
[Round "5.4"]
[White "Ernst, Sipke"]
[Black "Timman, Jan H"]
[Result "1/2-1/2"]
[ECO "E01"]
[WhiteElo "2553"]
[BlackElo "2528"]
[Annotator "ChessBase"]
[PlyCount "141"]
[EventDate "2019.11.30"]
[EventType "tourn"]
[EventCountry "NED"]
[SourceTitle "playchess.com"]
[Source "ChessBase"]
[SourceQuality "1"]
[TimeControl "900+10"]

1. d4 {[%emt 0:00:00]} Nf6 {[%emt 0:00:00]} 2. c4 {[%emt 0:00:00]} e6 {[%emt 0:00:00]} 3. g3 {[%emt 0:00:00]} c5 {[%emt 0:00:17]} 4. Nf3 {[%emt 0:00:00]} cxd4 {[%emt 0:00:04]} 5. Nxd4 {[%emt 0:00:00]} d5 {[%emt 0:00:08]} 6. Bg2 {[%emt 0:00:01]} e5 {[%emt 0:00:02]} 7. Nf3 {[%emt 0:00:01]} d4 {[%emt 0:00:05]} 8. O-O {[%emt 0:00:01]} Nc6 {[%emt 0:00:01]} 9. e3 {[%emt 0:00:01]} Be6 {[%emt 0:00:07]} 10. exd4 {[%emt 0:00:03]} exd4 {[%emt 0:00:02]} 11. Re1 {[%emt 0:00:31]} Bb4 {[%emt 0:00:47]} 12. Bd2 {[%emt 0:00:23]} Bxd2 {[%emt 0:00:33]} 13. Nbxd2 {[%emt 0:00:07]} O-O {[%emt 0:00:03]} 14. Ne5 {[%emt 0:01:00]} Qb6 {[%emt 0:00:46]} 15. Qb3 {[%emt 0:01:08]} Qc7 {[%emt 0:00:52]} 16. Nxc6 {[%emt 0:03:47]} bxc6 {[%emt 0:00:02]} 17. Qa3 {[%emt 0:00:00]} Rad8 {[%emt 0:00:40]} 18. Qc5 {[%emt 0:00:24]} Rd6 {[%emt 0:00:44]} 19. b4 {[%emt 0:00:39]} Nd7 {[%emt 0:02:15]} 20. Qh5 {[%emt 0:00:24]} Nf6 {[%emt 0:00:48]} 21. Qc5 {[%emt 0:01:24]} Nd7 {[%emt 0:00:06]} 22. Qh5 {[%emt 0:01:17]} Nf6 {[%emt 0:00:03]} 23. Qe5 {[%emt 0:00:09]} Rd7 {[%emt 0:00:58]} 24. Qc5 {[%emt 0:00:13]} Rc8 {[%emt 0:00:21]} 25. a4 {[%emt 0:00:45]} h6 {[%emt 0:00:39]} 26. a5 {[%emt 0:00:26]} Rdd8 {[%emt 0:00:57]} 27. Rad1 {[%emt 0:01:26]} Nd7 {[%emt 0:01:21]} 28. Qe7 {[%emt 0:01:24]} Re8 {[%emt 0:00:23]} 29. Qh4 {[%emt 0:00:02]} c5 {[%emt 0:00:25]} 30. b5 {[%emt 0:00:46]} Qxa5 {[%emt 0:00:02]} 31. Bc6 {[%emt 0:00:04]} Qd8 {[%emt 0:00:36]} 32. Qf4 {[%emt 0:01:20]} Qc7 {[%emt 0:00:06]} 33. Qxc7 {[%emt 0:00:21]} Rxc7 {[%emt 0:00:02]} 34. Ne4 {[%emt 0:00:08]} Rd8 {[%emt 0:00:12]} 35. Nd6 {[%emt 0:00:19]} Nb8 {[%emt 0:00:59]} 36. Nb7 {[%emt 0:00:06]} Nxc6 {[%emt 0:00:23]} 37. bxc6 {[%emt 0:00:01]} Rdc8 {[%emt 0:00:18]} 38. Nxc5 {[%emt 0:00:01]} Bxc4 {[%emt 0:00:05]} 39. Rxd4 {[%emt 0:00:09]} Bb5 {[%emt 0:00:47]} 40. Ne4 {[%emt 0:01:00]} Bxc6 {[%emt 0:00:05]} 41. Nd6 {[%emt 0:00:03]} Rb8 {[%emt 0:00:22]} 42. Rc4 {[%emt 0:00:07]} Re7 {[%emt 0:00:07]} 43. Rec1 {[%emt 0:00:06]} Bd5 {[%emt 0:00:16]} 44. Rc5 {[%emt 0:00:51]} Be6 {[%emt 0:00:01]} 45. f4 {[%emt 0:00:02]} Bh3 {[%emt 0:00:23]} 46. Kf2 {[%emt 0:00:06]} Rd8 {[%emt 0:00:10]} 47. Nc4 {[%emt 0:00:30]} Be6 {[%emt 0:00:20]} 48. f5 {[%emt 0:00:24]} Bxc4 {[%emt 0:00:19]} 49. R1xc4 {[%emt 0:00:03]} Rd2+ {[%emt 0:00:13]} 50. Kf3 {[%emt 0:00:00]} Rxh2 {[%emt 0:00:31]} 51. Rc8+ {[%emt 0:00:02]} Kh7 {[%emt 0:00:01]} 52. Rd8 {[%emt 0:01:09]} g6 {[%emt 0:01:00]} 53. fxg6+ {[%emt 0:00:20]} fxg6 {[%emt 0:00:06]} 54. Re4 {[%emt 0:00:10]} Rxe4 {[%emt 0:00:23]} 55. Rd7+ {[%emt 0:00:00]} Kg8 {[%emt 0:00:04]} 56. Kxe4 {[%emt 0:00:01]} Ra2 {[%emt 0:00:04]} 57. Ke5 {[%emt 0:00:31]} Ra6 {[%emt 0:00:02]} 58. g4 {[%emt 0:00:03]} g5 {[%emt 0:00:24]} 59. Kf5 {[%emt 0:00:04]} Kf8 {[%emt 0:00:03]} 60. Ke5 {[%emt 0:00:20]} Ra4 {[%emt 0:01:08]} 61. Kf5 {[%emt 0:00:01]} Ke8 {[%emt 0:00:11]} 62. Rd6 {[%emt 0:00:18]} Rf4+ {[%emt 0:00:10]} 63. Kg6 {[%emt 0:00:01]} Rxg4 {[%emt 0:00:06]} 64. Kxh6 {[%emt 0:00:01]} a5 {[%emt 0:00:13]} 65. Kh5 {[%emt 0:00:10]} Rb4 {[%emt 0:00:12]} 66. Kxg5 {[%emt 0:00:09]} Ke7 {[%emt 0:00:01]} 67. Rd5 {[%emt 0:00:07]} a4 {[%emt 0:00:09]} 68. Kf5 {[%emt 0:00:01]} Rh4 {[%emt 0:00:15]} 69. Rd3 {[%emt 0:00:12]} Rc4 {[%emt 0:00:43]} 70. Ke5 {[%emt 0:00:06]} Rh4 {[%emt 0:00:03]} 71. Kd5 {[%emt 0:00:19]} 1/2-1/2